bitfinex/quotes_SOLUSD_20250206
["timestamp","ask_amount","ask_price","bid_price","bid_amount"]
[1738858001366,33.9540743,191.98,191.95,0.063]
[1738858001567,33.9540743,191.97,191.95,0.063]
[1738858001793,33.9540743,191.98,191.95,0.063]
[1738858002196,33.9540743,191.96,191.95,0.063]
[1738858005511,39.1634743,191.96,191.95,0.063]
[1738858005685,33.9540743,191.96,191.95,0.063]
[1738858006486,33.9540743,191.97,191.95,0.063]
[1738858006681,6.2025,192.01,191.95,34.0170743]
[1738858006883,33.9540743,192.05,191.98,33.9540743]
[1738858007104,5.2066,192.07,191.97,33.9540743]
[1738858007312,1.0,192.06,191.95,0.063]
[1738858007513,33.9540743,192.03,191.96,33.9540743]
[1738858007716,13.41184853,192.06,191.96,0.25098]
[1738858008014,33.9540743,192.02,191.95,0.063]
[1738858008227,33.9540743,192.01,191.95,0.063]
[1738858008393,33.9540743,192.02,191.95,0.063]
[1738858008735,6.1299,192.08,191.95,0.063]
[1738858008897,33.9540743,191.98,191.95,0.063]
[1738858009484,33.9540743,191.97,191.95,0.063]
[1738858009714,33.9540743,191.96,191.95,0.063]
[1738858010017,33.9540743,191.98,191.95,0.063]
[1738858010215,33.9540743,191.99,191.95,0.063]
[1738858010414,33.9540743,192.01,191.95,0.063]
[1738858010621,33.9540743,192.02,191.95,39.2266743]
[1738858010919,33.9540743,192.02,191.94,0.25098]
[1738858010920,1.0,191.92,191.91,0.063]
[1738858011122,1.0,191.92,191.75,5.2781]
[1738858011123,1.0,191.9,191.75,5.2781]
[1738858011296,0.99995669,191.94,191.75,5.2781]
[1738858011297,33.9540743,191.86,191.78,33.9540743]
[1738858011494,33.9540743,191.88,191.8,33.9540743]
[1738858011825,33.9540743,191.88,191.81,0.12549]
[1738858012113,6.201,191.98,191.82,33.9540743]
[1738858012114,33.9540743,191.9,191.82,33.9540743]
[1738858012313,4.29e-06,191.83,191.82,13.91380853]
[1738858012617,2.257e-05,191.85,191.84,13.91380853]
[1738858012833,3.037e-05,191.88,191.87,20.50196]
[1738858012996,1.843e-05,191.89,191.88,13.78831853]
[1738858013618,1.843e-05,191.89,191.88,34.3305443]
[1738858013996,1.843e-05,191.89,191.88,0.37647]
[1738858014320,1.843e-05,191.89,191.88,34.3305443]
[1738858014620,1.843e-05,191.89,191.88,5.2115]
[1738858015205,28.05472297,191.92,191.86,10.7519]
[1738858015405,33.9540743,191.93,191.86,10.7519]
[1738858015604,33.9540743,191.91,191.86,5.54]
[1738858015827,33.9540743,191.9,191.86,5.54]
[1738858016133,18.62064853,191.98,191.86,10.752]
[1738858016436,33.9540743,191.91,191.86,10.752]
[1738858016635,33.9540743,191.9,191.86,10.752]
[1738858016924,33.9540743,191.9,191.87,0.37647]
[1738858017223,33.9540743,191.91,191.87,0.37647]
[1738858017401,33.9540743,191.9,191.87,0.37647]
[1738858017603,5.2094,191.96,191.86,5.54]
[1738858017604,33.9540743,191.88,191.86,5.54]
[1738858017834,33.9540743,191.88,191.82,24.5678994]
[1738858017997,33.9540743,191.89,191.82,58.5219737]
[1738858018205,33.9540743,191.89,191.83,13.91380853]
[1738858018818,33.9540743,191.89,191.86,0.063]
[1738858020227,33.9540743,191.9,191.86,0.063]
[1738858020850,33.9540743,191.9,191.86,5.2751]
[1738858021034,33.9540743,191.89,191.87,0.12549]
[1738858021233,33.9540743,191.9,191.87,0.37647]
[1738858022047,33.9540743,191.89,191.87,0.37647]
[1738858022218,33.9540743,191.88,191.86,0.063]
[1738858022423,33.9540743,191.87,191.86,0.063]
[1738858023035,33.9540743,191.88,191.86,0.063]
[1738858023638,33.9540743,191.87,191.86,0.063]
[1738858023944,33.9540743,191.88,191.86,0.063]
[1738858024453,33.9540743,191.89,191.86,0.063]
[1738858024650,33.9540743,191.94,191.87,34.3305443]
[1738858024847,33.9540743,191.98,191.91,34.3305443]
[1738858025046,5.2075,192.03,191.93,0.37647]
[1738858025262,1.0,192.01,191.92,5.54]
[1738858025459,1.0,191.98,191.92,5.54]
[1738858025829,1.0,191.97,191.92,5.54]
[1738858026231,20.0,191.94,191.92,5.54]
[1738858026481,33.9540743,191.93,191.92,5.54]
[1738858027424,33.9540743,191.93,191.86,0.063]
[1738858027633,33.9540743,191.89,191.86,0.063]
[1738858027840,5.2091,191.97,191.87,0.37647]
[1738858028043,33.9540743,191.89,191.87,0.37647]
[1738858028235,14.41184853,191.98,191.87,0.37647]
[1738858028236,33.9540743,191.88,191.87,0.37647]
[1738858028435,33.9540743,191.89,191.86,5.275]
[1738858028632,33.9540743,191.9,191.86,5.275]
[1738858028851,33.9540743,191.92,191.87,0.37647]
[1738858029361,33.9540743,191.91,191.87,0.37647]
[1738858029735,33.9540743,191.88,191.87,0.37647]
[1738858029939,33.9540743,191.88,191.86,0.063]
[1738858030158,33.9540743,191.89,191.86,0.063]
[1738858030832,33.9540743,191.9,191.86,0.063]
[1738858031538,33.9540743,191.89,191.87,0.12549]
[1738858032135,34.06658577,191.88,191.86,0.063]
[1738858032340,0.11251147,191.88,191.86,0.063]
[1738858034351,0.11251147,191.88,191.86,0.31398]
[1738858034560,0.11251147,191.88,191.87,0.12549]
[1738858034960,0.11251147,191.88,191.86,0.063]
[1738858035677,0.11251147,191.88,191.87,0.25098]
[1738858035839,0.11251147,191.88,191.87,54.4560343]
[1738858036041,0.09945055,191.9,191.89,0.12549]
[1738858036262,4.727e-05,191.91,191.9,13.91380853]
[1738858036454,4.727e-05,191.91,191.9,53.07888283]
[1738858036663,4.727e-05,191.91,191.9,0.37647]
[1738858037248,4.727e-05,191.91,191.9,6.49447375]
[1738858037650,4.727e-05,191.91,191.9,40.44854805]
[1738858037854,4.727e-05,191.91,191.9,53.86039658]
[1738858039080,0.09734548,191.97,191.9,53.86039658]
[1738858039081,5.2067,192.06,191.94,20.0]
[1738858039253,40.2604743,192.1,192.04,0.12549]
[1738858039453,0.03,192.12,192.04,0.12549]
[1738858039454,33.9840743,192.12,192.06,33.9540743]
[1738858039670,0.03,192.12,192.09,0.25098]
[1738858040281,0.03,192.12,192.11,34.4560343]
[1738858040845,0.03,192.15,192.14,20.50196]
[1738858041078,0.03,192.15,192.14,59.6605343]
[1738858041403,0.03,192.15,192.14,73.07238283]
[1738858041681,0.03,192.15,192.14,0.37647]
[1738858041975,6.3064,192.27,192.14,1.78058101]
[1738858042280,33.9540743,192.27,192.21,0.12549]
[1738858042446,5.1996,192.32,192.22,0.25098]
[1738858042664,33.9540743,192.26,192.22,0.12549]
[1738858042841,33.9540743,192.25,192.22,0.12549]
[1738858043481,33.9540743,192.27,192.22,0.12549]
[1738858043775,7.6761,192.33,192.26,0.12549]
[1738858043776,33.9540743,192.29,192.26,0.12549]
[1738858043993,33.9540743,192.32,192.28,0.12549]
[1738858044146,33.9540743,192.35,192.3,0.12549]
[1738858044678,33.9540743,192.35,192.23,1.0]
[1738858044679,0.03,192.36,192.25,33.9540743]
[1738858044980,33.9540743,192.27,192.21,5.2025]
[1738858045191,33.9540743,192.25,192.21,5.2025]
[1738858045346,33.9540743,192.27,192.22,0.50196]
[1738858045551,5.1993,192.33,192.22,0.50196]
[1738858045771,33.9540743,192.26,192.22,0.37647]
[1738858045976,33.9540743,192.23,192.2,10.7228]
[1738858046147,19.1977,192.33,192.2,10.7228]
[1738858046148,33.9540743,192.26,192.2,10.7228]
[1738858046348,33.9540743,192.26,192.21,0.37647]
[1738858046585,33.9540743,192.23,192.2,5.52]
[1738858046896,33.9540743,192.3,192.2,5.52]
[1738858046897,33.41184853,192.27,192.2,5.52]
[1738858047051,33.9540743,192.21,192.2,5.52]
[1738858047255,33.9540743,192.21,192.17,0.25098]
[1738858047483,33.9540743,192.19,192.17,0.12549]
[1738858047661,33.9540743,192.18,192.13,7.92013522]
[1738858047866,33.9540743,192.17,192.14,0.37647]
[1738858048168,21.99995669,192.27,192.17,0.12549]
[1738858048169,20.0,192.27,192.17,0.12549]
[1738858048374,0.03,192.36,192.17,0.12549]
[1738858048375,6.2687,192.31,192.2,0.12549]
[1738858048581,33.9540743,192.23,192.2,0.12549]
[1738858048789,33.9540743,192.21,192.19,0.12549]
[1738858048969,33.9540743,192.2,192.15,0.50196]
[1738858049153,33.9540743,192.2,192.15,0.37647]
[1738858049357,33.9540743,192.2,192.15,5.58057]
[1738858049587,33.9540743,192.18,192.12,33.9540743]
[1738858049791,33.9540743,192.17,192.1,44.6796743]
[1738858049989,33.9540743,192.16,192.11,0.50196]
[1738858050357,33.9540743,192.17,192.11,0.50196]
[1738858050682,33.9540743,192.18,192.11,34.4560343]
[1738858050862,33.9540743,192.19,192.13,0.50196]
[1738858051379,33.9540743,192.21,192.15,0.50196]
[1738858051587,33.9540743,192.18,192.15,0.37647]
[1738858051750,33.9540743,192.16,192.12,5.205]
[1738858051948,33.9540743,192.13,192.04,34.73471828]
[1738858052252,0.11144682,192.13,192.05,5.52]
[1738858052458,0.11144682,192.13,192.09,0.37647]
[1738858052756,0.11144682,192.13,192.12,20.25098]
[1738858052955,0.11144682,192.13,192.12,25.45598]
[1738858053391,0.11144682,192.13,192.12,25.58147]
[1738858053591,0.11144682,192.13,192.12,5.45598]
[1738858053759,34.06552112,192.13,192.06,5.2067]
[1738858053967,33.9540743,192.1,192.05,10.7269]
[1738858054163,33.9540743,192.07,192.02,5.2077]
[1738858054476,33.9540743,192.06,192.02,5.2077]
[1738858054681,33.9540743,192.05,192.02,5.2077]
[1738858054988,33.9540743,192.08,192.02,5.2077]
[1738858055182,33.9540743,192.08,192.03,0.37647]
[1738858055693,33.9540743,192.06,192.03,0.12549]
[1738858055876,33.9540743,192.05,192.01,5.52]
[1738858056071,33.9540743,192.08,192.01,39.4740743]
[1738858056390,0.11144682,192.13,192.05,0.12549]
[1738858056777,20.11144682,192.13,192.05,0.12549]
[1738858056978,20.11144682,192.13,192.07,0.25098]
[1738858057179,20.0,192.09,191.97,13.0224]
[1738858057377,20.0,192.09,191.97,5.2091]
[1738858057593,33.9540743,192.01,191.97,5.2091]
[1738858057767,33.9540743,192.0,191.97,5.2091]
[1738858057968,33.9540743,192.08,191.99,33.9540743]
[1738858058191,33.9540743,192.11,192.03,34.2050543]
[1738858058365,33.9540743,192.11,192.05,0.12549]
[1738858058681,33.9540743,192.11,192.06,0.12549]
[1738858058884,33.9540743,192.12,192.06,0.12549]
[1738858059071,33.9540743,192.12,192.08,0.12549]
[1738858059601,33.9540743,192.11,192.08,0.12549]
[1738858059898,0.11144682,192.13,192.08,0.12549]
[1738858060103,34.06552112,192.13,192.08,0.12549]
[1738858060477,34.06552112,192.13,192.08,0.37647]
[1738858060994,0.11144682,192.13,192.08,0.37647]
[1738858061493,0.11144682,192.13,192.1,0.25098]
[1738858061693,34.06552112,192.13,192.07,5.2063]
[1738858061992,33.9540743,192.11,192.04,33.9540743]
[1738858062198,33.9540743,192.09,192.03,5.2075]
[1738858062795,20.82932508,192.08,192.04,0.25098]
[1738858062976,20.82932508,192.09,192.04,0.25098]
[1738858063176,20.82932508,192.1,192.04,0.25098]
[1738858063483,20.82932508,192.1,192.05,5.2069]
[1738858063684,20.82932508,192.09,192.05,5.2069]
[1738858063875,20.82932508,192.06,192.01,10.7279]
[1738858064077,20.82932508,192.04,192.01,10.728]
[1738858064284,20.82932508,192.06,192.01,10.728]
[1738858064489,20.82932508,192.08,192.02,0.25098]
[1738858064683,5.31634682,192.13,192.02,0.25098]
[1738858064989,20.82932508,192.08,192.02,0.25098]
[1738858065224,20.82932508,192.05,192.02,0.12549]
[1738858065707,20.82932508,192.03,191.95,20.82932508]
[1738858065902,1.0,192.09,191.95,5.2096]
[1738858065903,20.82932508,192.0,191.95,5.2096]
[1738858066199,20.82932508,192.01,191.96,0.25098]
[1738858066600,20.82932508,191.98,191.94,5.2099]
[1738858067104,20.82932508,191.98,191.94,0.12549]
[1738858067485,20.82932508,191.98,191.94,5.2099]
[1738858067795,20.82932508,191.97,191.93,5.33559]
[1738858068387,20.82932508,191.98,191.93,5.33559]
[1738858068607,20.82932508,191.97,191.93,5.33559]
[1738858068912,20.82932508,191.96,191.91,5.2105]
[1738858069074,20.82932508,191.96,191.92,0.12549]
[1738858069472,20.82932508,191.93,191.9,0.063]
[1738858069874,5.2077,192.02,191.91,0.25098]
[1738858070102,1.0,192.05,191.94,0.37647]
[1738858070103,5.2069,192.05,191.94,0.37647]
[1738858070286,6.3548,192.09,191.95,0.12549]
[1738858070486,6.3548,192.09,191.99,0.12549]
[1738858070693,6.3548,192.09,191.98,0.25098]
[1738858071401,20.82932508,192.05,192.0,0.12549]
[1738858071574,20.82932508,192.04,191.97,20.82932508]
[1738858071776,20.82932508,192.02,191.96,10.7292]
[1738858071977,20.82932508,192.04,191.97,21.08030508]
[1738858072203,0.11160972,192.0,191.99,0.25098]
[1738858072503,0.11160972,192.0,191.99,0.12549]
[1738858072887,0.11160972,192.0,191.97,0.37647]
[1738858074005,0.11160972,192.0,191.99,0.12549]
[1738858075910,20.9409348,192.0,191.96,5.52]
[1738858076081,20.9409348,192.0,191.93,1.5908]
[1738858076082,20.82932508,191.99,191.93,5.2102]
[1738858076284,20.82932508,191.98,191.93,5.2102]
[1738858076680,20.82932508,191.98,191.94,0.25098]
[1738858076880,20.82932508,191.98,191.94,0.12549]
[1738858077116,20.82932508,191.97,191.92,5.52]
[1738858077403,5.31990972,192.0,191.9,0.063]
[1738858077404,20.82932508,191.95,191.9,0.063]
[1738858077610,20.82932508,191.95,191.91,0.25098]
[1738858077980,20.82932508,191.94,191.9,0.063]
[1738858078189,20.82932508,191.95,191.9,0.063]
[1738858078516,20.82932508,191.97,191.91,0.12549]
[1738858078687,20.82932508,191.96,191.91,0.12549]
[1738858079220,20.82932508,191.97,191.91,0.12549]
[1738858079516,20.82932508,191.95,191.9,0.063]
[1738858079893,47.37358333,192.0,191.9,0.063]
[1738858080125,20.82932508,191.95,191.9,0.063]
[1738858080510,20.82932508,191.91,191.9,0.063]
[1738858080887,20.82932508,191.93,191.9,0.063]
[1738858081089,20.82932508,191.97,191.91,0.12549]
[1738858081300,5.2086,191.99,191.91,0.12549]
[1738858081585,20.82932508,191.95,191.9,0.063]
[1738858082009,20.82932508,191.95,191.9,0.18849]
[1738858082215,20.82932508,191.94,191.9,0.063]
[1738858082515,20.82932508,191.91,191.9,0.063]
[1738858083022,20.82932508,191.94,191.9,0.063]
[1738858083209,40.82932508,191.95,191.9,0.18849]
[1738858083517,20.9409348,192.0,191.94,0.25098]
[1738858083732,20.0,191.98,191.94,20.95481508]
[1738858083926,40.82932508,191.98,191.92,5.2104]
[1738858084112,39.33232508,191.98,191.91,26.04002508]
[1738858084317,39.33232508,191.98,191.91,5.2107]
[1738858084521,20.82932508,191.96,191.9,0.18849]
[1738858084817,20.82932508,191.94,191.9,0.063]
[1738858085620,20.82932508,191.92,191.9,0.063]
[1738858086193,20.82932508,191.94,191.9,0.063]
[1738858086426,20.82932508,191.93,191.9,0.063]
[1738858087501,47.37428333,192.0,191.9,5.39949]
[1738858087502,20.82932508,191.96,191.9,5.39949]
[1738858087740,0.11160972,192.0,191.94,21.08030508]
[1738858088014,0.11160972,192.0,191.9,6.05528727]
[1738858088322,5.32000972,192.0,191.9,5.274]
[1738858088628,20.82932508,191.97,191.9,26.10332508]
[1738858088921,20.82932508,191.94,191.9,0.063]
[1738858089226,20.82932508,191.93,191.9,0.063]
[1738858089428,20.82932508,191.92,191.9,0.063]
[1738858089725,20.82932508,191.93,191.9,0.063]
[1738858090103,20.82932508,191.91,191.9,0.063]
[1738858090503,40.82932508,191.92,191.9,0.063]
[1738858090819,20.0,191.92,191.9,0.063]
[1738858091223,20.0,191.91,191.9,0.063]
[1738858091412,41.65865016,191.91,191.86,0.063]
[1738858091610,20.82932508,191.87,191.86,0.063]
[1738858092188,0.10346126,191.87,191.86,0.063]
[1738858092695,0.10346126,191.87,191.86,0.31398]
[1738858092899,0.10346126,191.87,191.86,35.58771307]
[1738858093486,0.10346126,191.87,191.86,40.01823361]
[1738858093906,6.126e-05,191.87,191.86,40.01823361]
[1738858094804,7.88e-06,191.88,191.87,34.74313361]
[1738858094994,0.10303607,191.89,191.87,35.52453637]
[1738858095323,0.10303607,191.89,191.88,40.26313361]
[1738858095324,3.607e-05,191.89,191.88,40.26313361]
[1738858095686,3.607e-05,191.89,191.88,45.47463361]
[1738858096824,0.11129649,191.91,191.9,2.50196]
[1738858097117,0.11129649,191.91,191.86,28.713]
[1738858097118,6.1143,191.9,191.72,7.92013522]
[1738858097292,0.99995669,191.73,191.72,7.92013522]
[1738858097991,1.0,191.83,191.72,7.92013522]
[1738858097992,0.99995669,191.74,191.72,28.7494603]
[1738858098195,20.82932508,191.82,191.73,8.01716439]
[1738858098411,21.82928177,191.88,191.81,20.0]
[1738858098715,9.649e-05,191.91,191.82,1.03260433]
[1738858098896,9.649e-05,191.91,191.87,0.25098]
[1738858099299,9.649e-05,191.91,191.89,0.25098]
[1738858099607,9.649e-05,191.91,191.9,20.90689929]
[1738858099799,9.649e-05,191.91,191.9,21.03238929]
[1738858100005,15.71254007,191.91,191.9,333.03238929]
[1738858100335,15.71254007,191.91,191.89,20.82932508]
[1738858100491,15.71254007,191.91,191.89,21.610674]
[1738858100818,15.71254007,191.91,191.89,24.240574]
[1738858101115,0.11387694,191.92,191.9,1.0]
[1738858101313,0.03,191.91,191.9,313.0]
[1738858101518,0.11387694,191.92,191.9,313.0]
[1738858101812,0.11387694,191.92,191.9,312.0]
[1738858102121,0.11387694,191.92,191.9,332.82932508]
[1738858102920,0.11387694,191.92,191.91,0.25098]
[1738858103114,0.11387694,191.92,191.91,1.25098]
[1738858103420,0.11387694,191.92,191.91,1.03213683]
[1738858104810,0.11387694,191.92,191.91,21.03213683]
[1738858105236,0.11387694,191.92,191.91,26.55213683]
[1738858105427,0.11387694,191.92,191.91,25.77098]
[1738858105604,0.11387694,191.92,191.91,20.25098]
[1738858105808,0.11387694,191.92,191.91,5.52]
[1738858106007,0.11387694,191.92,191.91,5.77098]
[1738858106732,0.11387694,191.92,191.91,0.12549]
[1738858106903,1.11383363,191.92,191.86,21.61070285]
[1738858107105,1.11383363,191.92,191.88,0.50196]
[1738858107433,1.11383363,191.92,191.88,0.37647]
[1738858107601,21.82928177,191.91,191.88,5.89647]
[1738858107799,0.11387694,191.92,191.89,20.95481508]
[1738858108033,0.11387694,191.92,191.9,0.37647]
[1738858108199,0.11387694,191.92,191.91,0.50196]
[1738858108393,0.11387694,191.92,191.91,22.11261147]
[1738858108822,0.11387694,191.92,191.91,0.50196]
[1738858109029,1.11383363,191.92,191.91,0.12549]
[1738858109234,26.63255871,191.92,191.91,0.12549]
[1738858109433,0.99995669,191.89,191.83,21.61068979]
[1738858109800,0.99995669,191.89,191.85,0.50196]
[1738858110005,21.82928177,191.91,191.85,0.50196]
[1738858110281,0.11387694,191.92,191.9,13.53733853]
[1738858110441,0.11387694,191.92,191.91,0.37647]
[1738858110602,0.99995669,191.89,191.83,0.78142777]
[1738858110802,20.82932508,191.88,191.84,5.52]
[1738858111323,4.80327694,191.92,191.85,0.50196]
[1738858111324,0.99995669,191.9,191.85,0.50196]
[1738858111713,0.99995669,191.89,191.85,0.50196]
[1738858112100,21.82928177,191.88,191.85,0.37647]
[1738858112328,0.10502894,191.86,191.85,0.37647]
[1738858112539,0.99995669,191.85,191.81,5.52]
[1738858112702,0.99995669,191.81,191.79,0.063]
[1738858113037,0.99995669,191.8,191.79,0.063]
[1738858113240,21.82928177,191.8,191.79,0.063]
[1738858113803,26.52158177,191.8,191.79,0.063]
[1738858114023,47.35090685,191.8,191.79,0.0001]
[1738858114221,47.35090685,191.8,191.71,0.063]
[1738858114222,0.99995669,191.72,191.71,0.063]
[1738858114545,21.82928177,191.72,191.71,0.063]
[1738858115447,21.82928177,191.72,191.71,0.0001]
[1738858115660,20.99995669,191.69,191.68,0.0001]
[1738858115816,41.82928177,191.69,191.68,0.0001]
[1738858116018,46.52428177,191.69,191.68,0.0001]
[1738858116526,0.99995669,191.67,191.66,0.0001]
[1738858116733,21.82928177,191.67,191.66,0.0001]
[1738858117840,26.52478177,191.67,191.66,0.0001]
[1738858119955,27.30596882,191.67,191.66,0.0001]
[1738858120162,20.0,191.64,191.59,0.063]
[1738858120466,21.82928177,191.6,191.59,0.063]
[1738858120642,42.65860685,191.6,191.59,0.063]
[1738858121163,42.65860685,191.6,191.52,0.063]
[1738858121164,20.0,191.57,191.52,0.063]
[1738858121319,0.99995669,191.53,191.52,0.063]
[1738858121752,0.99995669,191.5,191.49,0.063]
[1738858121919,5.69965669,191.5,191.49,0.0001]
[1738858122325,26.52898177,191.5,191.49,0.0001]
[1738858124342,5.69965669,191.5,191.49,0.0001]
[1738858124661,26.52898177,191.5,191.49,0.0001]
[1738858125158,47.35830685,191.5,191.49,0.0001]
[1738858125362,20.0,191.47,191.35,0.063]
[1738858125565,20.82932508,191.4,191.35,0.063]
[1738858125859,0.99995669,191.38,191.35,0.063]
[1738858126557,0.99995669,191.37,191.35,0.063]
[1738858127021,0.99995669,191.38,191.35,0.063]
[1738858127222,0.99995669,191.37,191.35,0.063]
[1738858127437,0.99995669,191.4,191.36,0.50196]
[1738858127641,0.99995669,191.42,191.4,0.37647]
[1738858127838,0.99995669,191.46,191.42,0.37647]
[1738858128027,0.99995669,191.44,191.42,21.20579508]
[1738858128244,0.99995669,191.45,191.42,0.37647]
[1738858128651,0.99995669,191.44,191.39,20.82932508]
[1738858128829,0.99995669,191.4,191.35,0.063]
[1738858129042,0.99995669,191.38,191.35,0.063]
[1738858129433,0.99995669,191.39,191.36,0.37647]
[1738858129632,0.99995669,191.37,191.36,0.12549]
[1738858129838,0.99995669,191.37,191.35,0.063]
[1738858129839,0.99995669,191.36,191.35,0.063]
[1738858130039,20.99995669,191.36,191.35,0.063]
[1738858130750,55.12295892,191.36,191.35,0.063]
[1738858131269,55.90414597,191.36,191.35,0.0001]
[1738858131476,0.99995669,191.33,191.32,0.0001]
[1738858131765,35.12295892,191.33,191.32,0.0001]
[1738858132143,35.22187623,191.33,191.32,0.0001]
[1738858133437,39.92577623,191.33,191.32,0.0001]
[1738858133835,1.098874,191.33,191.32,0.0001]
[1738858134036,0.09891731,191.33,191.32,0.0001]
[1738858134470,0.09891731,191.33,191.32,48.03691076]
[1738858135244,0.09548284,191.34,191.33,13.91380853]
[1738858135464,8.284e-05,191.34,191.33,54.0468339]
[1738858135768,0.1045233,191.36,191.35,20.0]
[1738858136071,3.702e-05,191.37,191.36,13.91380853]
[1738858136366,3.702e-05,191.37,191.36,48.03681076]
[1738858136584,8.709e-05,191.38,191.37,83.15981299]
[1738858136879,8.709e-05,191.38,191.37,48.82010732]
[1738858137583,8.709e-05,191.38,191.37,54.04550732]
[1738858137748,8.709e-05,191.38,191.37,54.10850732]
[1738858138260,0.10175936,191.41,191.38,13.91380853]
[1738858138582,0.10175936,191.41,191.38,48.03681076]
[1738858139479,0.10175936,191.41,191.39,14.91380853]
[1738858139480,9.72e-05,191.4,191.39,14.91380853]
[1738858139649,9.72e-05,191.4,191.39,59.58490703]
[1738858139850,9.72e-05,191.4,191.39,58.80171076]
[1738858140354,9.72e-05,191.4,191.39,60.58509816]
[1738858140653,0.10260654,191.42,191.41,48.03681076]
[1738858140879,0.10260654,191.42,191.41,48.82009574]
[1738858141273,0.03,191.49,191.45,20.50196]
[1738858141480,0.03,191.49,191.48,53.25921076]
[1738858142282,0.99995669,191.59,191.52,20.50196]
[1738858142449,0.99995669,191.62,191.57,34.49947223]
[1738858142654,0.99995669,191.63,191.57,34.49947223]
[1738858142982,0.99995669,191.68,191.62,47.78583076]
[1738858143369,0.03,191.69,191.64,13.66282853]
[1738858143686,0.99995669,191.68,191.64,0.12549]
[1738858143867,1.02995669,191.69,191.63,48.03681076]
[1738858144068,0.99995669,191.64,191.63,0.12549]
[1738858144272,0.99995669,191.63,191.57,39.64300223]
[1738858144468,0.99995669,191.6,191.58,0.37647]
[1738858144683,0.99995669,191.62,191.58,0.37647]
[1738858144884,34.12300223,191.64,191.58,0.37647]
[1738858144885,0.99995669,191.66,191.62,0.37647]
[1738858145181,0.99995669,191.67,191.64,0.37647]
[1738858145581,0.03,191.69,191.66,34.49947223]
[1738858145757,0.03,191.69,191.68,0.12549]
[1738858146097,0.03,191.69,191.68,48.03681076]
[1738858146890,0.03,191.69,191.68,0.37647]
[1738858147183,1.02995669,191.69,191.68,0.12549]
[1738858147365,35.12295892,191.8,191.68,35.03085616]
[1738858147571,0.99995669,191.8,191.75,34.12300223]
[1738858147807,0.99995669,191.79,191.76,0.37647]
[1738858147968,0.99995669,191.77,191.76,0.12549]
[1738858148288,0.99995669,191.75,191.7,25.2164]
[1738858148463,0.99995669,191.72,191.7,34.12300223]
[1738858148657,0.99995669,191.74,191.7,34.12300223]
[1738858149279,0.99995669,191.74,191.71,0.37647]
[1738858149690,0.99995669,191.72,191.71,0.37647]
[1738858149994,0.99995669,191.68,191.64,39.64300223]
[1738858150170,0.99995669,191.74,191.67,34.12300223]
[1738858150370,0.99995669,191.77,191.73,0.12549]
[1738858150582,0.99995669,191.76,191.74,0.12549]
[1738858150885,4.6921,191.81,191.65,0.78211742]
[1738858150886,0.99995669,191.71,191.65,0.78211742]
[1738858151192,0.99995669,191.75,191.65,13.91380853]
[1738858151498,0.99995669,191.74,191.72,34.12300223]
[1738858151672,0.99995669,191.73,191.7,13.53733853]
[1738858151871,0.99995669,191.73,191.7,0.12549]
[1738858152098,0.99995669,191.71,191.69,0.37647]
[1738858152309,0.99995669,191.7,191.69,0.12549]
[1738858152592,0.99995669,191.66,191.62,34.12300223]
[1738858152795,34.12300223,191.7,191.63,34.12300223]
[1738858152796,0.99995669,191.67,191.63,34.12300223]
[1738858152974,0.99995669,191.69,191.65,34.12300223]
[1738858153295,0.99995669,191.69,191.66,0.12549]
[1738858153593,0.99995669,191.62,191.6,5.52]
[1738858153804,0.99995669,191.64,191.6,5.52]
[1738858153976,0.11403661,191.71,191.64,0.37647]
[1738858153977,0.99995669,191.68,191.64,0.37647]
[1738858154167,0.99995669,191.65,191.64,0.12549]
[1738858154370,0.9759302,191.63,191.62,0.25098]
[1738858154564,0.9759302,191.61,191.57,39.34300223]
[1738858154763,0.9759302,191.6,191.55,39.64300223]
[1738858155064,0.9759302,191.57,191.54,34.12300223]
[1738858155265,0.9759302,191.57,191.54,13.91380853]
[1738858155467,0.9759302,191.57,191.54,13.66282853]
[1738858155797,0.9759302,191.57,191.52,39.34430223]
[1738858155967,0.9759302,191.57,191.53,48.03681076]
[1738858156300,31.7402,191.65,191.57,0.12549]
[1738858156301,0.9759302,191.58,191.57,0.12549]
[1738858156476,0.9759302,191.59,191.57,0.12549]
[1738858156877,0.9759302,191.55,191.54,34.12300223]